bitfinex-derivatives/quotes_BNBF0:USTF0_20251027
["timestamp","ask_amount","ask_price","bid_price","bid_amount"]
[1761593847608,0.64540412,1145.6,1142.9,0.86794759]
[1761593848210,0.64540412,1145.6,1142.8,0.86794759]
[1761593848710,0.64540412,1145.6,1142.6,1.2964002]
[1761593848711,0.64540412,1145.6,1142.9,0.86794759]
[1761593849210,0.64540412,1145.6,1142.8,0.86794759]
[1761593849807,0.64540412,1145.7,1142.9,0.86794759]
[1761593850213,0.64540412,1145.8,1142.8,0.86794759]
[1761593850412,0.64540412,1145.7,1142.8,0.86794759]
[1761593850609,0.774,1145.6,1142.8,0.86794759]
[1761593851912,0.774,1145.6,1142.5,0.86794759]
[1761593853413,0.774,1145.6,1142.4,0.86794759]
[1761593853613,0.774,1145.6,1142.5,0.86794759]
[1761593854216,0.774,1145.6,1142.4,0.86794759]
[1761593855316,0.774,1145.6,1142.5,0.86794759]
[1761593855509,0.774,1145.6,1142.4,0.86794759]
[1761593857513,0.774,1145.6,1142.3,0.86794759]
[1761593858116,0.774,1145.6,1142.5,0.86794759]
[1761593859516,0.774,1145.6,1142.3,0.86794759]
[1761593859817,0.774,1145.6,1142.1,0.86794759]
[1761593860813,0.83411439,1145.5,1142.1,0.86794759]
[1761593861018,0.83411439,1145.5,1141.6,0.15230459]
[1761593861019,0.83411439,1145.5,1142.0,0.86794759]
[1761593864621,1.47951851,1145.5,1142.0,0.86794759]
[1761593864920,0.64540412,1145.4,1142.2,0.86794759]
[1761593865921,0.64540412,1145.3,1142.1,0.86794759]
[1761593866121,1.47951851,1145.4,1141.9,0.86794759]
[1761593866320,0.83411439,1145.3,1141.9,0.86794759]
[1761593866516,0.83411439,1145.2,1141.9,0.86794759]
[1761593866720,0.64540412,1145.4,1141.9,0.86794759]
[1761593869823,0.64540412,1145.4,1142.0,0.86794759]
[1761593870725,0.64540412,1145.4,1141.6,0.15230459]
[1761593870726,0.64540412,1144.9,1141.6,0.15230459]
[1761593871120,1.47922451,1144.9,1141.6,0.15230459]
[1761593871325,0.83382039,1144.8,1141.6,0.15230459]
[1761593871521,0.64540412,1145.0,1141.6,0.15230459]
[1761593872126,1.47907695,1145.1,1141.6,0.15230459]
[1761593872426,0.83367283,1145.0,1141.7,0.86794759]
[1761593872622,0.64540412,1145.2,1141.7,0.86794759]
[1761593873026,1.4794829,1145.4,1141.6,0.15230459]
[1761593873328,0.64540412,1145.2,1141.7,0.86794759]
[1761593873526,1.4794829,1145.2,1141.8,0.86794759]
[1761593873726,0.83407878,1145.1,1141.8,0.86794759]
[1761593873926,0.83407878,1145.0,1141.8,0.86794759]
[1761593874130,0.64540412,1145.2,1141.8,0.86794759]
[1761593874628,0.64540412,1145.3,1141.9,0.86794759]
[1761593874825,1.47989428,1145.3,1141.9,0.86794759]
[1761593875023,0.83449016,1145.2,1141.9,0.86794759]
[1761593875222,0.83449016,1145.1,1142.0,0.86794759]
[1761593875421,0.64540412,1145.3,1142.1,0.86794759]
[1761593875625,0.64540412,1145.2,1142.3,0.86794759]
[1761593876930,0.63155264,1145.2,1142.3,0.86794759]
[1761593879326,1.46645047,1145.2,1142.4,0.86794759]
[1761593879930,0.83489783,1145.2,1142.3,0.86794759]
[1761593880926,0.85747624,1145.3,1142.3,0.86794759]
[1761593881132,0.83581623,1145.2,1142.3,0.86794759]
[1761593881328,0.83581623,1145.2,1142.4,0.86794759]
[1761593881628,0.83581623,1145.2,1142.5,0.86794759]
[1761593881828,0.85747624,1145.5,1142.5,0.86794759]
[1761593882028,1.69372462,1145.4,1142.5,0.86794759]
[1761593882233,0.83624838,1145.3,1142.5,0.86794759]
[1761593882432,0.83624838,1145.2,1142.5,0.86794759]
[1761593882728,0.85747624,1145.4,1142.5,0.86794759]
[1761593882932,0.83599821,1145.3,1142.5,0.86794759]
[1761593883533,0.83599821,1145.2,1142.5,0.86794759]
[1761593883732,1.63147624,1145.6,1142.5,0.86794759]
[1761593883934,0.8362835,1145.5,1142.5,0.86794759]
[1761593884335,1.69375974,1145.5,1142.5,0.86794759]
[1761593884636,0.8362835,1145.4,1142.5,0.86794759]
[1761593886238,0.8362835,1145.4,1142.6,0.86794759]
[1761593887236,0.8362835,1145.4,1142.7,0.86794759]
[1761593887732,1.69375974,1145.4,1142.6,0.86794759]
[1761593887937,0.8362835,1145.3,1142.6,0.86794759]
[1761593888334,0.8362835,1145.2,1142.7,0.86794759]
[1761593888532,0.8362835,1145.1,1142.7,0.86794759]
[1761593888735,0.85747624,1145.5,1142.7,0.86794759]
[1761593888937,0.83941906,1145.4,1142.7,0.86794759]
[1761593889336,1.6968953,1145.4,1142.8,0.86794759]
[1761593889537,0.83941906,1145.3,1142.8,0.86794759]
[1761593889738,0.85747624,1144.9,1142.2,0.86794759]
[1761593889939,0.83941906,1144.8,1142.2,0.86794759]
[1761593890137,0.83941906,1144.8,1142.0,0.86794759]
[1761593890338,0.83941906,1144.7,1142.1,0.86794759]
[1761593890537,0.83941906,1144.6,1142.1,0.86794759]
[1761593890835,0.85747624,1145.1,1142.1,0.86794759]
[1761593891039,0.83714398,1145.0,1142.1,0.86794759]
[1761593891241,0.83714398,1145.0,1142.2,0.86794759]
[1761593891541,1.69462022,1145.0,1142.2,0.86794759]
[1761593891836,0.83714398,1144.9,1142.2,0.86794759]
[1761593892038,0.85747624,1144.7,1142.4,0.86794759]
[1761593892241,2.44162022,1144.6,1142.5,0.86794759]
[1761593892437,0.83714398,1144.5,1142.5,0.86794759]
[1761593893243,0.747,1144.6,1142.3,0.86794759]
[1761593894444,0.747,1144.6,1142.4,0.86794759]
[1761593901749,0.747,1144.6,1142.6,0.86794759]
[1761593901949,0.747,1144.6,1142.5,0.86794759]
[1761593902150,0.747,1144.6,1142.6,0.86794759]
[1761593903052,0.747,1144.6,1142.7,0.86794759]
[1761593903250,0.747,1144.6,1142.6,0.86794759]
[1761593909453,0.747,1144.6,1142.7,0.86794759]
[1761593910654,0.747,1144.6,1142.8,0.86794759]
[1761593910850,0.747,1144.6,1142.9,0.86794759]
[1761593912557,0.747,1144.6,1143.1,0.86794759]
[1761593912856,0.747,1144.6,1143.0,0.86794759]
[1761593915255,0.747,1144.6,1143.1,0.86794759]
[1761593918154,0.747,1144.6,1143.0,0.86794759]
[1761593918359,0.747,1144.6,1143.1,0.86794759]
[1761593919359,0.84168603,1145.0,1143.1,0.86794759]
[1761593919558,0.84168603,1145.0,1143.2,0.86794759]
[1761593919959,0.84168603,1145.0,1143.3,0.86794759]
[1761593920159,0.84168603,1144.9,1143.4,0.86794759]
[1761593920360,0.85747624,1145.2,1143.4,0.86794759]
[1761593920560,0.84323295,1145.1,1143.4,0.86794759]
[1761593920964,0.84323295,1145.1,1143.5,0.86794759]
[1761593921165,0.85747624,1145.3,1143.6,0.86794759]
[1761593921361,0.84325263,1145.2,1143.6,0.86794759]
[1761593921565,0.84325263,1145.2,1143.5,0.86794759]
[1761593921862,0.84325263,1145.1,1143.5,0.86794759]
[1761593922067,0.85747624,1145.4,1143.5,0.86794759]
[1761593922266,0.84310211,1145.3,1143.5,0.86794759]
[1761593922562,1.63910211,1145.3,1143.5,0.86794759]
[1761593922766,0.84310211,1145.2,1143.5,0.86794759]
[1761593924065,0.84310211,1145.2,1143.4,0.86794759]
[1761593924269,0.84310211,1145.2,1143.3,0.86794759]
[1761593926268,0.84310211,1145.2,1143.2,0.86794759]
[1761593927172,1.70057835,1145.2,1143.2,0.86794759]
[1761593927371,0.84310211,1145.1,1143.2,0.86794759]
[1761593927572,1.70057835,1145.1,1143.2,0.86794759]
[1761593927772,0.84310211,1145.0,1143.2,0.86794759]
[1761593930270,0.84310211,1145.0,1143.1,0.86794759]
[1761593930470,0.84310211,1144.9,1143.1,0.86794759]
[1761593930775,0.84255956,1144.8,1143.1,0.86794759]
[1761593931074,0.85747624,1145.1,1143.1,0.86794759]
[1761593931271,0.84252657,1145.0,1143.0,0.86794759]
[1761593931475,0.85747624,1144.8,1142.9,0.86794759]
[1761593931672,0.85747624,1144.4,1142.5,0.86794759]
[1761593931876,0.84252657,1144.3,1142.3,0.86794759]
[1761593932175,0.84252657,1144.2,1142.3,0.86794759]
[1761593932373,0.85747624,1144.4,1142.6,0.86794759]
[1761593932672,0.8420312,1144.3,1142.6,0.86794759]
[1761593932872,0.8420312,1144.2,1142.6,0.86794759]
[1761593933072,0.85747624,1144.5,1142.5,0.86794759]
[1761593933278,0.8420832,1144.4,1142.5,0.86794759]
[1761593934579,0.8420832,1144.3,1142.5,0.86794759]
[1761593934878,0.85747624,1144.6,1142.5,0.86794759]
[1761593935077,0.84195057,1144.5,1142.5,0.86794759]
[1761593935577,1.69942681,1144.5,1142.5,0.86794759]
[1761593935877,0.84195057,1144.4,1142.5,0.86794759]
[1761593936174,0.84195057,1144.3,1142.5,0.86794759]
[1761593936378,0.85747624,1144.6,1142.5,0.86794759]
[1761593936573,0.8417011,1144.5,1142.5,0.86794759]
[1761593937075,0.64625035,1144.3,1142.5,0.86794759]
[1761593939281,0.64625035,1144.3,1142.4,0.86794759]
[1761593939483,1.094,1144.2,1142.4,0.86794759]
[1761593940279,1.094,1144.2,1142.5,0.86794759]
[1761593941881,1.094,1144.2,1142.4,0.86794759]
[1761593943485,1.094,1144.2,1142.5,0.86794759]
[1761593943685,1.094,1144.2,1142.6,0.86794759]
[1761593943981,1.094,1144.2,1142.9,0.86794759]
[1761593946287,1.094,1144.2,1142.8,0.86794759]
[1761593948388,1.094,1144.2,1142.9,0.86794759]
[1761593949586,1.094,1144.2,1142.5,0.86794759]
[1761593953590,1.094,1144.2,1142.6,0.86794759]
[1761593954194,1.094,1144.2,1142.9,0.86794759]
[1761593954393,1.094,1144.2,1143.0,0.86794759]
[1761593955094,1.094,1144.2,1141.6,0.15230459]
[1761593955095,1.094,1144.2,1142.9,0.86794759]
[1761593955293,1.094,1144.2,1143.0,0.86794759]
[1761593956288,1.094,1144.2,1142.9,0.86794759]
[1761593956493,1.094,1144.2,1143.0,0.86794759]
[1761593957794,1.094,1144.2,1143.1,0.86794759]
[1761593961194,1.094,1144.2,1143.0,0.86794759]
[1761593970499,1.094,1144.2,1143.1,0.86794759]
[1761593971100,1.094,1144.2,1143.2,0.86794759]
[1761593971900,1.094,1144.2,1141.6,0.15230459]
[1761593971901,1.094,1144.2,1142.1,0.86794759]
[1761593972099,1.094,1144.2,1142.0,0.86794759]
[1761593972302,0.84156975,1144.1,1141.9,0.86794759]
[1761593972503,0.84156975,1144.1,1142.1,0.86794759]
[1761593972903,0.84156975,1144.1,1142.0,0.86794759]
[1761593973098,0.84156975,1144.1,1141.9,0.86794759]
[1761593973302,1.094,1144.2,1142.0,0.86794759]
[1761593973502,1.094,1144.2,1142.2,0.86794759]
[1761593973799,1.094,1144.2,1142.3,0.86794759]
[1761593974607,1.74025035,1144.2,1142.5,0.86794759]
[1761593974806,1.74025035,1144.2,1142.4,0.86794759]
[1761593975807,1.094,1144.2,1142.4,0.86794759]
[1761593977808,1.094,1144.2,1142.3,0.86794759]
[1761593979112,1.74025035,1144.2,1142.4,0.86794759]
[1761593979406,1.094,1144.2,1142.2,0.86794759]
[1761593980110,1.094,1144.2,1142.1,0.86794759]
[1761593980306,1.094,1144.2,1142.0,0.86794759]
[1761593982209,1.094,1144.2,1142.4,0.86794759]
[1761593982510,1.094,1144.2,1142.6,0.86794759]
[1761593982706,1.094,1144.2,1142.7,0.86794759]
[1761593983106,1.094,1144.2,1142.8,0.86794759]
[1761593983409,1.094,1144.2,1142.9,0.86794759]
[1761593988015,1.094,1144.2,1142.7,0.86794759]
[1761593989615,1.094,1144.2,1142.8,0.86794759]
[1761593989909,1.094,1144.2,1142.6,1.2964002]
[1761593989910,1.094,1144.2,1142.7,0.86794759]
[1761593994617,0.64625035,1144.2,1142.8,0.86794759]
[1761593997512,0.64625035,1144.2,1142.7,0.86794759]
[1761593998019,0.686,1144.1,1142.7,0.86794759]
[1761593998717,0.686,1144.1,1142.8,0.86794759]
[1761594001918,0.686,1144.1,1142.7,0.86794759]
[1761594002214,0.686,1144.1,1142.8,0.86794759]
[1761594005423,0.686,1144.1,1142.6,0.86794759]
[1761594005623,0.686,1144.1,1142.7,0.86794759]
[1761594006420,0.686,1144.1,1142.6,0.86794759]
[1761594006924,0.686,1144.1,1142.7,0.86794759]
[1761594008929,0.686,1144.1,1143.1,0.86794759]
[1761594009424,0.686,1144.1,1143.2,0.86794759]
[1761594013827,0.686,1144.1,1143.1,0.86794759]
[1761594014431,0.686,1144.1,1143.2,0.86794759]
[1761594015731,0.686,1144.1,1143.1,0.86794759]
[1761594017137,0.686,1144.1,1143.2,0.86794759]
[1761594017737,0.686,1144.1,1143.3,0.86794759]
[1761594018037,0.686,1144.1,1143.4,0.86794759]
[1761594021141,0.686,1144.1,1143.3,0.86794759]
[1761594022444,0.686,1144.1,1143.2,0.86794759]
[1761594023342,0.686,1144.1,1143.1,0.86794759]
[1761594023546,0.686,1144.1,1143.2,0.86794759]
[1761594024247,0.686,1144.1,1143.1,0.86794759]
[1761594029942,0.686,1144.1,1143.2,0.86794759]
[1761594030848,0.84266856,1145.0,1143.2,0.86794759]
[1761594031047,0.84266856,1144.9,1143.2,0.86794759]
[1761594031248,0.64625035,1145.1,1143.2,0.86794759]
[1761594033745,0.64625035,1145.0,1143.3,0.86794759]
[1761594033949,0.925,1144.9,1143.3,0.86794759]
[1761594035347,0.84267068,1144.8,1143.3,0.86794759]
[1761594035544,0.84267068,1144.8,1143.1,1.2964002]
[1761594035545,0.84267068,1144.8,1143.2,0.86794759]
[1761594039851,1.48892103,1144.8,1143.1,0.86794759]
[1761594041149,1.48892103,1144.8,1143.2,0.86794759]
[1761594041347,0.64625035,1144.7,1143.2,0.86794759]
[1761594042352,1.48892103,1144.8,1143.1,0.86794759]
[1761594047250,1.48892103,1144.8,1143.0,0.86794759]
[1761594049853,0.84393246,1144.7,1143.0,0.86794759]
[1761594050155,0.64625035,1144.8,1143.0,0.86794759]
[1761594050355,1.49022523,1144.8,1143.0,0.86794759]
[1761594050553,0.84397488,1144.7,1143.0,0.86794759]
[1761594050753,0.64625035,1144.8,1143.0,0.86794759]
[1761594050950,1.49029251,1144.8,1143.0,0.86794759]
[1761594051152,0.84404216,1144.7,1143.0,0.86794759]
[1761594051451,0.64625035,1144.8,1143.0,0.86794759]
[1761594051653,1.49060579,1144.8,1143.0,0.86794759]
[1761594051853,0.84435544,1144.7,1143.0,0.86794759]
[1761594052053,0.64625035,1144.8,1143.0,0.86794759]
[1761594052252,1.49085428,1144.8,1143.0,0.86794759]
[1761594052451,0.84460393,1144.7,1143.0,0.86794759]
[1761594052653,0.64625035,1144.8,1143.0,0.86794759]
[1761594052852,1.49097954,1144.8,1143.0,0.86794759]
[1761594053058,0.84472919,1144.7,1143.0,0.86794759]
[1761594053257,0.64625035,1144.8,1143.0,0.86794759]
[1761594053852,1.49111466,1144.8,1143.0,0.86794759]
[1761594055459,0.84486431,1144.8,1143.0,0.86794759]
[1761594055657,1.4937394,1144.8,1143.0,0.86794759]
[1761594055958,0.925,1144.9,1142.2,0.15216474]
[1761594055959,0.925,1144.9,1143.2,0.86794759]
[1761594057163,0.925,1144.9,1143.3,0.86794759]
[1761594057461,0.925,1144.9,1143.7,0.86794759]
[1761594062863,0.925,1144.9,1143.5,0.86794759]
[1761594063162,0.925,1144.9,1143.8,0.86794759]
[1761594064164,0.925,1144.9,1143.9,0.86794759]
[1761594064366,0.925,1144.9,1143.8,0.86794759]
[1761594064861,0.925,1144.9,1143.9,0.86794759]
[1761594065666,0.925,1144.9,1143.7,0.86794759]
[1761594066266,0.925,1144.9,1143.6,0.86794759]
[1761594070768,0.925,1144.9,1143.5,0.86794759]
[1761594075074,0.925,1144.9,1143.6,0.86794759]
[1761594075972,0.925,1144.9,1143.7,0.86794759]
[1761594076272,0.925,1144.9,1143.8,0.86794759]
[1761594076474,0.925,1144.9,1143.7,0.86794759]
[1761594077476,0.925,1144.9,1143.8,0.86794759]
[1761594080878,0.925,1144.9,1143.7,0.86794759]
[1761594083080,0.64866486,1145.3,1143.7,0.86794759]
[1761594084382,1.49257174,1145.4,1143.4,0.86794759]
[1761594084580,0.84390688,1145.3,1143.4,0.86794759]
[1761594084784,0.64866486,1145.4,1143.4,0.86794759]
[1761594085385,0.64866486,1145.3,1143.3,0.86794759]
[1761594085783,0.71,1145.2,1143.3,0.86794759]
[1761594086581,1.55376453,1145.2,1143.3,0.86794759]
[1761594087288,0.64866486,1145.1,1143.5,0.86794759]
[1761594087587,0.64866486,1145.0,1143.4,0.86794759]
[1761594090587,1.49242939,1145.0,1143.4,0.86794759]
[1761594090788,0.64866486,1144.9,1143.3,0.86794759]
[1761594095592,0.64866486,1144.9,1143.2,0.86794759]
[1761594096393,0.64866486,1144.8,1143.2,0.86794759]
[1761594102294,1.49242939,1144.9,1143.3,0.86794759]
[1761594102798,1.35866486,1145.2,1142.9,0.86794759]
[1761594103001,0.84341474,1145.1,1142.9,0.86794759]
[1761594104705,0.84341474,1145.1,1142.8,0.86794759]
[1761594105001,0.84341474,1145.1,1142.9,0.86794759]
[1761594105905,0.84356828,1145.0,1142.9,0.86794759]
[1761594106106,1.35866486,1145.2,1142.9,0.86794759]
[1761594106306,0.84356828,1145.1,1142.9,0.86794759]
[1761594110008,0.64866486,1145.0,1143.3,0.86794759]
[1761594110210,1.49223314,1145.1,1143.6,0.86794759]
[1761594110404,1.35866486,1145.2,1143.7,0.86794759]
[1761594110704,0.71,1145.2,1143.8,0.86794759]
[1761594112811,0.71,1145.2,1143.7,0.86794759]
[1761594114811,0.84446457,1145.3,1143.7,0.86794759]
[1761594115011,0.64866486,1145.4,1143.7,0.86794759]
[1761594115612,0.64878825,1145.4,1143.7,0.86794759]
[1761594116408,1.49339466,1145.4,1143.7,0.86794759]
[1761594116612,0.84460641,1145.3,1143.7,0.86794759]
[1761594116809,0.64878825,1145.4,1143.7,0.86794759]
[1761594117208,0.64878825,1145.1,1143.2,0.86794759]
[1761594117410,0.64878825,1145.0,1143.3,0.86794759]
[1761594117713,0.64878825,1145.1,1143.3,0.86794759]
[1761594118814,1.079,1145.0,1143.3,0.86794759]
[1761594119111,1.49304979,1144.9,1143.5,0.86794759]
[1761594119308,1.72778825,1145.0,1143.5,0.86794759]
[1761594120210,0.84383659,1144.9,1143.1,0.86794759]
[1761594120413,0.84383659,1144.9,1142.7,0.86794759]
[1761594120414,0.64878825,1144.8,1142.7,0.86794759]
[1761594120914,0.64878825,1144.8,1143.0,0.86794759]
[1761594121110,0.64878825,1144.8,1143.1,0.86794759]
[1761594123215,0.64878825,1144.8,1143.0,0.86794759]
[1761594123811,0.64878825,1144.8,1143.1,0.86794759]
[1761594125217,0.64878825,1144.8,1143.0,0.86794759]
[1761594127620,0.64878825,1144.7,1143.0,0.86794759]
[1761594127820,0.64878825,1144.5,1142.7,0.86794759]
[1761594128118,0.64878825,1144.6,1142.7,0.86794759]
[1761594128525,1.49262484,1144.6,1142.7,0.86794759]
[1761594128719,0.84383659,1144.5,1142.7,0.86794759]
[1761594128919,0.64878825,1144.6,1142.7,0.86794759]
[1761594129419,1.49155625,1144.7,1142.5,0.86794759]
[1761594129621,1.93647624,1145.0,1142.8,0.86794759]
[1761594129622,0.64878825,1144.8,1142.8,0.86794759]
[1761594132019,0.64878825,1144.6,1143.0,0.86794759]
[1761594133024,1.49153711,1144.7,1143.1,0.86794759]
[1761594133221,0.64878825,1144.8,1143.2,0.86794759]
[1761594133620,1.4909603,1144.9,1143.2,0.86794759]
[1761594133824,1.4909603,1144.9,1143.3,0.86794759]
[1761594135425,0.84217205,1144.9,1143.3,0.86794759]
[1761594135925,1.72778825,1145.0,1143.3,0.86794759]
[1761594136326,0.8425947,1144.9,1143.3,0.86794759]
[1761594138426,1.49138295,1144.9,1143.4,0.86794759]
[1761594139728,0.8425947,1144.9,1143.4,0.86794759]
[1761594140228,1.72778825,1145.0,1143.4,0.86794759]
[1761594140428,1.079,1145.0,1143.5,0.86794759]
[1761594140724,1.079,1145.0,1143.4,0.86794759]
[1761594142331,1.079,1145.0,1142.2,0.15216474]
[1761594142332,1.079,1145.0,1143.3,0.86794759]
[1761594142533,1.079,1145.0,1143.4,0.86794759]
[1761594143033,1.079,1145.0,1143.3,0.86794759]
[1761594143630,1.079,1145.0,1143.4,0.86794759]
[1761594146335,1.079,1145.0,1143.3,0.86794759]
[1761594146531,1.079,1145.0,1143.4,0.86794759]
[1761594146936,0.64833939,1145.2,1143.7,0.86794759]
[1761594147234,1.491744,1145.3,1143.6,0.86794759]
[1761594147430,0.84340461,1145.2,1143.6,0.86794759]
[1761594147633,0.64833939,1145.4,1143.7,0.86794759]
[1761594148131,0.64833939,1145.4,1142.6,2.1606671]
[1761594148132,0.64833939,1145.3,1143.8,0.86794759]
[1761594148436,0.64833939,1145.4,1143.8,0.86794759]
[1761594149136,0.64833939,1145.3,1143.8,0.86794759]
[1761594149336,0.84347369,1145.4,1143.2,0.86794759]
[1761594149534,0.84347369,1145.3,1143.2,0.86794759]
[1761594149735,0.64833939,1145.6,1143.2,0.86794759]
[1761594150433,0.71,1145.5,1143.2,0.86794759]
[1761594150833,1.55302635,1145.5,1143.2,0.86794759]
[1761594151032,0.64833939,1145.3,1143.2,0.86794759]
[1761594151435,0.64833939,1145.2,1143.3,0.86794759]
[1761594152037,0.64833939,1145.3,1143.3,0.86794759]
[1761594152234,0.84312586,1145.4,1143.5,0.86794759]
[1761594152536,0.71,1145.5,1143.5,0.86794759]
[1761594152737,1.55299136,1145.5,1143.5,0.86794759]
[1761594152932,0.84299136,1145.4,1143.5,0.86794759]
[1761594153135,0.71,1145.5,1143.5,0.86794759]
[1761594154031,1.55295747,1145.5,1143.5,0.86794759]
[1761594155539,0.64833939,1145.3,1142.6,0.86794759]
[1761594155739,0.64833939,1145.2,1142.5,0.86794759]
[1761594158240,0.64833939,1145.1,1142.6,0.86794759]
[1761594158642,1.49129686,1145.1,1142.6,0.86794759]
[1761594158942,0.64833939,1144.9,1142.7,0.86794759]
[1761594159141,1.49129686,1144.9,1142.7,0.86794759]
[1761594159437,0.64833939,1144.6,1142.9,0.86794759]
[1761594160338,1.49129686,1144.6,1142.9,0.86794759]
[1761594160640,0.64833939,1144.6,1142.9,0.86794759]
[1761594161039,0.64833939,1144.5,1142.9,0.86794759]
[1761594161345,0.84206765,1144.6,1142.5,0.86794759]
[1761594161642,0.64833939,1144.7,1142.5,0.86794759]
[1761594164445,0.64833939,1144.7,1142.4,0.86794759]
[1761594166449,0.64833939,1144.7,1142.3,0.86794759]
[1761594168346,0.64833939,1144.8,1142.3,0.86794759]
[1761594168750,0.64833939,1144.5,1142.7,0.86794759]
[1761594168951,0.64833939,1144.4,1142.6,0.86794759]
[1761594170048,0.84181126,1144.5,1142.6,0.86794759]
[1761594170049,1.49015065,1144.5,1142.6,0.86794759]
[1761594170347,0.84181126,1144.4,1142.6,0.86794759]
[1761594170547,0.64833939,1144.5,1142.6,0.86794759]
[1761594175954,1.48832558,1144.5,1142.6,0.86794759]
[1761594178455,0.64833939,1144.4,1142.6,0.86794759]
[1761594179251,0.64833939,1144.4,1142.5,0.86794759]
[1761594183155,1.078,1144.3,1142.5,0.86794759]
[1761594185354,1.078,1144.3,1142.4,0.86794759]
[1761594188163,1.078,1144.3,1142.2,0.15216474]
[1761594188164,0.64833939,1144.0,1142.2,0.15216474]
[1761594188362,0.64833939,1143.9,1142.2,0.15216474]
[1761594191760,0.64833939,1144.2,1142.2,0.15216474]
[1761594191960,1.48496566,1144.2,1142.2,0.15216474]
[1761594192864,0.83662627,1144.2,1142.2,0.15216474]
[1761594193064,1.48496566,1144.2,1142.2,0.15216474]
[1761594196663,1.078,1144.3,1142.2,0.15216474]
[1761594196864,1.078,1144.3,1142.2,1.02011233]
[1761594197167,1.078,1144.3,1142.3,0.86794759]
[1761594201668,1.078,1144.3,1142.2,1.02011233]
[1761594201867,1.078,1144.3,1142.2,0.15216474]
[1761594205376,1.078,1144.3,1142.2,0.86794759]
[1761594205676,1.078,1144.3,1142.4,0.15220134]
[1761594211779,1.078,1144.3,1142.4,1.02014893]
[1761594212079,1.078,1144.3,1142.6,0.86794759]
[1761594212278,0.64833939,1144.5,1142.6,0.86794759]
[1761594212780,1.48878002,1144.6,1142.5,0.86794759]
[1761594212980,0.64833939,1144.7,1142.6,0.86794759]
[1761594213281,0.64833939,1144.7,1142.7,0.86794759]
[1761594213481,0.64833939,1144.6,1142.8,0.86794759]
[1761594214282,0.64833939,1144.6,1142.9,0.86794759]
[1761594214482,1.48888523,1144.6,1142.9,0.86794759]
[1761594215283,0.64833939,1144.5,1143.0,0.86794759]
[1761594215882,1.021,1144.4,1143.0,0.86794759]
[1761594218180,1.66933939,1144.4,1142.8,0.86794759]
[1761594219488,0.84309855,1144.3,1142.8,0.86794759]
[1761594220981,1.49143794,1144.3,1142.8,0.86794759]
[1761594221281,0.64833939,1144.2,1142.8,0.86794759]
[1761594225884,1.021,1144.4,1142.5,0.86794759]
[1761594226188,1.021,1144.4,1142.6,0.86794759]
[1761594230384,1.021,1144.4,1142.7,0.86794759]
[1761594235890,1.021,1144.4,1142.9,0.86794759]
[1761594237697,1.021,1144.4,1143.0,0.86794759]
[1761594238997,1.021,1144.4,1142.9,0.86794759]
[1761594239692,1.021,1144.4,1143.0,0.86794759]
[1761594240692,1.021,1144.4,1142.8,0.86794759]
[1761594245400,1.021,1144.4,1142.5,0.86794759]
[1761594246602,0.84207746,1144.3,1142.5,0.86794759]
[1761594247400,0.84207746,1144.3,1142.4,1.02014893]
[1761594247597,0.84207746,1144.3,1142.5,0.86794759]
[1761594248797,0.64833939,1144.2,1142.6,0.86794759]
[1761594249697,0.64833939,1144.2,1142.7,0.86794759]
[1761594250398,1.49041685,1144.2,1142.7,0.86794759]
[1761594251204,0.64833939,1144.1,1142.7,0.86794759]
[1761594252306,0.64833939,1144.1,1142.8,0.86794759]
[1761594253407,0.84207746,1144.2,1142.5,0.86794759]
[1761594253607,1.49041685,1144.1,1142.4,0.15220134]
[1761594253807,0.84207746,1144.0,1142.4,0.15220134]
[1761594254006,0.64833939,1144.1,1142.4,0.15220134]
[1761594254706,1.49156611,1144.1,1142.4,0.15220134]
[1761594254911,0.84322672,1144.0,1142.4,0.15220134]
[1761594255108,0.84331298,1143.9,1142.4,1.02014893]
[1761594255309,0.64833939,1144.1,1142.4,1.02014893]
[1761594257216,0.64833939,1144.0,1142.4,0.15220134]
[1761594258214,0.64833939,1144.0,1142.5,0.86794759]
[1761594258215,0.64833939,1143.8,1142.5,0.86794759]
[1761594259214,1.49171645,1143.9,1142.4,1.02014893]
[1761594259414,0.84337706,1143.8,1142.4,0.15220134]
[1761594259617,0.64833939,1143.8,1142.4,0.15220134]
[1761594260514,1.49091628,1143.8,1142.4,0.15220134]
[1761594260816,0.64833939,1143.9,1142.4,0.15220134]
[1761594264513,0.8423298,1144.0,1142.4,0.15220134]
[1761594264719,0.64733542,1143.9,1142.4,0.15220134]
[1761594268218,1.48966522,1144.0,1142.4,1.02014893]
[1761594268421,0.64733542,1144.0,1142.4,1.02014893]
[1761594272320,1.4884803,1144.1,1142.4,1.02014893]
[1761594272523,0.64733542,1144.0,1142.4,1.02014893]
[1761594274228,0.64733542,1144.5,1142.4,0.15220134]
[1761594274524,0.64733542,1145.1,1142.9,0.86794759]
[1761594275025,0.88,1145.0,1142.9,0.86794759]
[1761594275329,0.8417367,1144.9,1142.9,0.86794759]
[1761594275726,0.8417367,1144.9,1142.8,0.86794759]
[1761594276226,1.48907212,1144.9,1142.9,0.86794759]
[1761594276929,1.48907212,1144.9,1142.8,0.86794759]
[1761594277928,0.64733542,1144.8,1142.9,0.86794759]
[1761594282132,0.64733542,1144.8,1142.8,0.86794759]
[1761594285633,1.48907212,1144.9,1142.8,0.86794759]
[1761594287130,1.48907212,1144.9,1142.9,0.86794759]
[1761594287131,0.64733542,1144.8,1142.9,0.86794759]
[1761594290331,0.64733542,1144.8,1142.8,0.86794759]
[1761594290634,0.64733542,1144.8,1142.9,0.86794759]
[1761594290930,0.64733542,1144.8,1142.8,0.86794759]
[1761594291835,0.64733542,1144.8,1142.9,0.86794759]
[1761594294037,1.48907212,1144.9,1142.8,0.86794759]
[1761594298841,1.48907212,1144.9,1142.7,0.86794759]
[1761594299942,0.64733542,1144.8,1142.8,0.86794759]
[1761594301643,1.48907212,1144.9,1142.7,0.86794759]
[1761594302439,1.48907212,1144.9,1142.8,0.86794759]
[1761594308755,0.64733542,1144.8,1142.9,0.86794759]
[1761594310956,0.88,1145.0,1142.8,0.86794759]
[1761594311651,0.88,1145.0,1142.4,1.44860154]
[1761594311652,1.52733542,1145.0,1142.9,0.86794759]
[1761594312256,0.88,1145.0,1142.9,0.86794759]
[1761594313654,0.88,1145.0,1142.8,0.86794759]
[1761594320761,0.88,1145.0,1142.9,0.86794759]
[1761594322462,0.88,1145.0,1143.0,0.86794759]
[1761594323658,0.84124098,1144.9,1143.1,0.86794759]
[1761594326962,1.4885764,1144.9,1143.2,0.86794759]
[1761594327364,0.84234787,1144.8,1143.2,0.86794759]
[1761594327570,0.64733542,1144.9,1143.2,0.86794759]
[1761594329269,0.64733542,1144.8,1143.3,0.86794759]